[Event "Canary Islands-chW 2019"]
[Site "La Palma"]
[Date "2019.05.04"]
[Round "4.2"]
[White "Mukhi Talreja, Ishita Tina"]
[Black "Rodriguez Centenera, Sara"]
[Result "0-1"]
[ECO "D02"]
[WhiteElo "1493"]
[BlackElo "1709"]
[Annotator "NA RC"]
[PlyCount "96"]
[EventDate "2019.05.02"]
[EventType "swiss"]
[EventCountry "ESP"]
[SourceTitle "playchess.com"]
[Source "ChessBase"]
[SourceQuality "1"]
[TimeControl "5400+30"]

1. d4 {[%emt 0:00:15]} d5 {[%emt 0:00:00]} 2. g3 {[%emt 0:00:26]} Nf6 {[%emt 0:00:48]} 3. Bg2 {[%emt 0:00:17]} Bg4 {[%emt 0:02:58]} 4. Nf3 {[%emt 0:01:24]} Nbd7 {[%emt 0:01:23]} 5. Nbd2 {[%emt 0:05:41]} e6 {[%emt 0:02:05]} 6. O-O {[%emt 0:02:19]} h6 {[%emt 0:02:34]} 7. Re1 {[%emt 0:05:00]} Be7 {[%emt 0:04:37]} 8. c4 {[%emt 0:08:04]} c6 {[%emt 0:04:18]} 9. b3 {[%emt 0:03:17]} O-O {[%emt 0:00:22]} 10. Bb2 {[%emt 0:03:32]} Qa5 {[%emt 0:04:06]} 11. a3 {[%emt 0:12:30]} Rfc8 {[%emt 0:08:56]} 12. h3 {[%emt 0:20:04]} Bf5 {[%emt 0:01:32]} 13. g4 {[%emt 0:02:09]} Bh7 {[%emt 0:01:14]} 14. g5 {[%emt 0:05:18]} Ne4 {[%emt 0:03:21]} 15. gxh6 {[%emt 0:02:08]} Nxd2 {[%emt 0:02:21]} 16. Nxd2 {[%emt 0:04:49]} Bg5 {[%emt 0:07:18]} 17. b4 {[%emt 0:07:16]} Qc7 {[%emt 0:01:49]} 18. e4 {[%emt 0:07:03]} Qf4 {[%emt 0:06:21]} 19. Bc1 {[%emt 0:02:32]} Bxh6 {[%emt 0:02:57]} 20. Nf3 {[%emt 0:01:09]} Qf6 {[%emt 0:02:43]} 21. e5 {[%emt 0:00:56]} Qg6 {[%emt 0:06:45]} 22. Nh4 {[%emt 0:00:27]} Qd3 {[%emt 0:00:32]} 23. Bxh6 {[%emt 0:02:05]} Qxd1 {[%emt 0:00:18]} 24. Rexd1 {[%emt 0:00:44]} gxh6 {[%emt 0:00:12]} 25. cxd5 {[%emt 0:00:52]} cxd5 {[%emt 0:00:45]} 26. Rdc1 {[%emt 0:01:22]} Nb6 {[%emt 0:01:27]} 27. Nf3 {[%emt 0:01:01]} Nc4 {[%emt 0:00:38]} 28. a4 {[%emt 0:00:37]} a5 {[%emt 0:01:35]} 29. b5 {[%emt 0:00:39]} b6 {[%emt 0:01:10]} 30. Bf1 {[%emt 0:00:29]} Be4 {[%emt 0:02:22]} 31. Bxc4 {[%emt 0:00:23]} dxc4 {[%emt 0:00:52]} 32. Nd2 {[%emt 0:00:25]} Bd3 {[%emt 0:00:29]} 33. Ra3 {[%emt 0:00:37]} Rab8 {[%emt 0:11:10]} 34. Rac3 {[%emt 0:00:33]} Rd8 {[%emt 0:00:36]} 35. Nxc4 {[%emt 0:00:32]} Rxd4 {[%emt 0:00:28]} 36. Nb2 {[%emt 0:00:27]} Bf5 {[%emt 0:03:24]} 37. Kg2 {[%emt 0:00:32]} Kh7 {[%emt 0:03:22]} 38. Rc7 {[%emt 0:00:32]} Rg8+ {[%emt 0:00:56]} 39. Kh2 {[%emt 0:00:29]} Rd2 {[%emt 0:01:14]} 40. Rxf7+ {[%emt 0:00:12]} Kh8 {[%emt 0:01:45]} 41. Nd1 {[%emt 0:00:47]} Be4 {[%emt 0:00:35]} 42. Rf6 {[%emt 0:00:33]} Rg2+ {[%emt 0:00:23]} 43. Kh1 {[%emt 0:00:24]} Rgxf2+ {[%emt 0:00:32]} 44. Kg1 {[%emt 0:00:14]} Rg2+ {[%emt 0:00:29]} 45. Kf1 {[%emt 0:00:53]} Bd3+ {[%emt 0:00:20]} 46. Ke1 {[%emt 0:00:17]} Rde2+ {[%emt 0:00:30]} 47. Kf1 {[%emt 0:00:14]} Rc2+ {[%emt 0:01:13]} 48. Ke1 {[%emt 0:00:27]} Rg1+ {[%emt 0:00:20]} 0-1

[Event "Canary Islands-chW 2019"]
[Site "La Palma"]
[Date "2019.05.04"]
[Round "5.1"]
[White "Rodriguez Centenera, Sara"]
[Black "Sosa Suarez, Carla Cristina"]
[Result "0-1"]
[ECO "D35"]
[WhiteElo "1709"]
[BlackElo "2093"]
[Annotator "NA"]
[PlyCount "112"]
[EventDate "2019.05.02"]
[EventType "swiss"]
[EventCountry "ESP"]
[SourceTitle "playchess.com"]
[Source "ChessBase"]
[SourceQuality "1"]
[TimeControl "5400+30"]

1. d4 {[%emt 0:00:00]} e6 {[%emt 0:00:00]} 2. c4 {[%emt 0:00:05]} d5 {[%emt 0:00:02]} 3. Nc3 {[%emt 0:00:12]} Nf6 {[%emt 0:00:10]} 4. cxd5 {[%emt 0:00:14]} exd5 {[%emt 0:00:07]} 5. Bg5 {[%emt 0:00:36]} Be7 {[%emt 0:01:52]} 6. e3 {[%emt 0:01:30]} O-O {[%emt 0:01:21]} 7. Bd3 {[%emt 0:00:39]} Nbd7 {[%emt 0:02:19]} 8. Nge2 {[%emt 0:01:14]} Re8 {[%emt 0:00:32]} 9. Nf4 {[%emt 0:04:20] D35: Queen's Gambit Declined: Exchange Variation} (9. O-O c6 10. Qc2 Nf8 11. f3 g6 12. Rad1 Ne6 13. Bh4 b5 14. Bf2 Bb7 15. Nc1 Rc8 16. Nb3 a6 17. Ne2 c5 18. dxc5 Nxc5 19. Nxc5 Bxc5 20. Qd2 {½-½ (59) Wojtaszek,R (2746)-Buhmann,R (2633) Germany 2016}) 9... c6 {[%emt 0:00:53]} 10. O-O {[%emt 0:00:48]} Nf8 $146 {[%emt 0:01:18]} ({Predecessor:} 10... h6 11. Bxf6 Nxf6 12. Kh1 Kh8 13. Rg1 Bd6 14. g4 g5 15. Nh3 Rg8 16. Qf3 h5 17. Bf5 Bxf5 18. Qxf5 Nxg4 19. Rxg4 hxg4 20. Qxg4 {0-1 (25) Vyzhimov,V-Borisenko,V Dnipropetrovsk 2004}) 11. Bxf6 {[%emt 0:02:47]} Bxf6 {[%emt 0:00:40]} 12. b4 {[%emt 0:00:05]} g6 {[%emt 0:03:16]} 13. a4 {[%emt 0:06:32]} Ne6 {[%emt 0:02:21]} 14. Nfe2 {[%emt 0:01:57]} Bg7 {[%emt 0:03:55]} 15. Rb1 {[%emt 0:02:46]} Ng5 {[%emt 0:01:57]} 16. Ng3 {[%emt 0:01:40]} f5 {[%emt 0:01:48]} 17. Qc1 {[%emt 0:01:12]} Be6 {[%emt 0:02:17]} 18. b5 {[%emt 0:00:54]} Qe7 {[%emt 0:06:18]} 19. bxc6 {[%emt 0:00:57]} bxc6 {[%emt 0:00:05]} 20. Nce2 {[%emt 0:04:57]} Rec8 {[%emt 0:02:30]} 21. Ba6 {[%emt 0:01:44]} Rc7 {[%emt 0:01:15]} 22. Nf4 {[%emt 0:04:10]} Bc8 {[%emt 0:03:31]} 23. Be2 {[%emt 0:05:37]} Ne6 {[%emt 0:01:00]} 24. Nd3 {[%emt 0:01:44]} f4 {[%emt 0:01:31]} 25. exf4 {[%emt 0:04:02]} Nxd4 {[%emt 0:02:03]} 26. Re1 {[%emt 0:01:18]} Qf8 {[%emt 0:06:03]} 27. Ne5 {[%emt 0:06:44]} Nxe2+ {[%emt 0:02:42]} 28. Nxe2 {[%emt 0:01:12]} Bf5 {[%emt 0:00:45]} 29. Rb3 {[%emt 0:02:25]} Rac8 {[%emt 0:01:52]} 30. Nd4 {[%emt 0:01:43]} c5 {[%emt 0:03:22]} 31. Rc3 {[%emt 0:01:43]} Rb7 {[%emt 0:01:50]} 32. g4 {[%emt 0:03:23]} cxd4 {[%emt 0:01:27]} 33. Rxc8 {[%emt 0:05:09]} Bxc8 {[%emt 0:00:04]} 34. Qc6 {[%emt 0:01:08]} Re7 {[%emt 0:02:48]} 35. Qxd5+ {[%emt 0:01:03]} Be6 {[%emt 0:00:19]} 36. Qxd4 {[%emt 0:01:02]} Bxg4 {[%emt 0:01:24]} 37. Qc4+ {[%emt 0:05:05]} Be6 {[%emt 0:00:08]} 38. Qb4 {[%emt 0:01:09]} Re8 {[%emt 0:02:59]} 39. Qb5 {[%emt 0:02:58]} g5 {[%emt 0:06:37]} 40. f5 {[%emt 0:01:19]} Bxf5 {[%emt 0:01:02]} 41. Qd5+ {[%emt 0:02:38]} Be6 {[%emt 0:00:59]} 42. Qb5 {[%emt 0:01:27]} Bf7 {[%emt 0:01:19]} 43. Re3 {[%emt 0:02:43]} Rb8 {[%emt 0:02:14]} 44. Qd7 {[%emt 0:01:30]} Rb1+ {[%emt 0:06:11]} 45. Kg2 {[%emt 0:00:12]} Qa8+ {[%emt 0:02:57]} 46. Nc6 {[%emt 0:02:29]} Rc1 {[%emt 0:05:02]} 47. Rf3 {[%emt 0:00:12]} Qxc6 {[%emt 0:01:36]} 48. Qxf7+ {[%emt 0:00:15]} Kh8 {[%emt 0:00:03]} 49. Qxa7 {[%emt 0:02:18]} h6 {[%emt 0:05:01]} 50. Qb8+ {[%emt 0:02:42]} Kh7 {[%emt 0:00:11]} 51. h3 {[%emt 0:02:08]} Qxa4 {[%emt 0:03:51]} 52. Qb7 {[%emt 0:02:19]} Qc4 {[%emt 0:01:41]} ({Worse is} 52... Qd1 53. Qe4+ Kh8 54. Qe8+ Kh7 55. Qe4+ Kh8 56. Qe8+ Kh7 57. Qe4+ $11) 53. Kh2 {[%emt 0:01:49]} Qe6 {[%emt 0:01:45]} ({Inferior is} 53... Qf1 54. Qe4+ Kh8 55. Qe8+ Kh7 56. Qe4+ Kh8 57. Qe8+ Kh7 58. Qe4+ $11) 54. Re3 {[%emt 0:02:56]} Qf5 {[%emt 0:01:36]} 55. Rf3 {[%emt 0:00:14]} (55. Qe4 $19 Qxe4 56. Rxe4) 55... Qe5+ {[%emt 0:00:11]} 56. Kg2 {[%emt 0:00:43]} Qe1 {[%emt 0:00:35]} 0-1

[Event "Canary Islands-chW 2019"]
[Site "La Palma"]
[Date "2019.05.04"]
[Round "5.2"]
[White "Hernandez Capote, Carmen"]
[Black "Rodriguez Redondo, Adhara"]
[Result "1/2-1/2"]
[ECO "E05"]
[WhiteElo "1691"]
[BlackElo "1883"]
[Annotator "NA RC"]
[PlyCount "75"]
[EventDate "2019.05.02"]
[EventType "swiss"]
[EventCountry "ESP"]
[SourceTitle "playchess.com"]
[Source "ChessBase"]
[SourceQuality "1"]
[TimeControl "5400+30"]

1. d4 {[%emt 0:00:00]} d5 {[%emt 0:00:00]} 2. c4 {[%emt 0:00:00]} e6 {[%emt 0:00:00]} 3. Nf3 {[%emt 0:00:00]} Nf6 {[%emt 0:00:00]} 4. g3 {[%emt 0:00:00]} Be7 {[%emt 0:00:00]} 5. Bg2 {[%emt 0:00:00]} O-O {[%emt 0:00:06]} 6. O-O {[%emt 0:00:08]} dxc4 {[%emt 0:02:06]} 7. Qc2 {[%emt 0:00:06]} b5 {[%emt 0:01:32]} 8. Ne5 {[%emt 0:02:05] E05: Open Catalan: 5 Nf3 Be7} (8. a4 b4 9. Nfd2 c6 10. Nxc4 Qxd4 11. Rd1 Qc5 12. b3 Ba6 13. Nbd2 Nbd7 14. Bb2 Rad8 15. e3 Qh5 {0-1 (38) Maghsoodloo,P (2688)-Nakamura,H (2746) St Petersburg 2018}) 8... Qxd4 {[%emt 0:01:35]} 9. Bxa8 {[%emt 0:00:12]} Qxe5 {[%emt 0:00:13]} 10. Bg2 $146 {[%emt 0:01:18]} ({Predecessor:} 10. Bf4 Qh5 11. Bf3 Ng4 12. h4 e5 13. Bd2 Bxh4 14. gxh4 Qxh4 15. Bxg4 Qxg4+ {0-1 (24) Nasos,K (1346)-Vitsaxakis,N (1841) Porto Rio 2016}) 10... Na6 {[%emt 0:07:32]} 11. a3 {[%emt 0:02:07]} Qh5 {[%emt 0:08:54]} 12. Nc3 {[%emt 0:21:46]} Bd7 {[%emt 0:02:26]} 13. Ne4 {[%emt 0:14:42]} Nxe4 {[%emt 0:02:57]} 14. Bxe4 {[%emt 0:00:42]} f5 {[%emt 0:01:38]} 15. Bf3 {[%emt 0:00:54]} Qf7 {[%emt 0:02:19]} 16. Be3 {[%emt 0:10:56]} Bd6 {[%emt 0:09:54]} 17. Rad1 {[%emt 0:03:40]} Nb8 {[%emt 0:02:58]} 18. Bxa7 {[%emt 0:02:02]} Nc6 {[%emt 0:01:15]} 19. Be3 {[%emt 0:00:33]} Ne5 {[%emt 0:00:55]} 20. Bg2 {[%emt 0:01:25]} Ng4 {[%emt 0:02:42]} 21. Bd2 {[%emt 0:04:58]} Qh5 {[%emt 0:03:40]} 22. h3 {[%emt 0:01:05]} Nf6 {[%emt 0:01:35]} 23. Bb4 {[%emt 0:02:15]} Bxb4 {[%emt 0:03:03]} 24. axb4 {[%emt 0:01:03]} Nd5 {[%emt 0:04:36]} 25. Qd2 {[%emt 0:01:10]} c6 {[%emt 0:02:06]} 26. Ra1 {[%emt 0:08:36]} ({Don't play} 26. Bxd5 $6 exd5 27. Qf4 Qxe2 $11) 26... h6 {[%emt 0:02:12]} 27. Ra7 {[%emt 0:01:01]} Rf7 {[%emt 0:00:24]} 28. Rfa1 {[%emt 0:01:46]} Kh7 {[%emt 0:04:45]} 29. e3 {[%emt 0:07:14]} Qg5 {[%emt 0:01:48]} 30. Rb7 {[%emt 0:02:47]} Be8 {[%emt 0:04:10]} 31. Raa7 {[%emt 0:01:14]} Rxb7 {[%emt 0:01:09]} 32. Rxb7 {[%emt 0:00:02]} Qf6 {[%emt 0:02:52]} 33. Bxd5 {[%emt 0:01:32]} cxd5 {[%emt 0:02:14]} 34. Qd4 {[%emt 0:00:34]} Kg6 {[%emt 0:03:03]} (34... Qxd4 $142 35. exd4 Kg6) 35. f4 {[%emt 0:03:45]} Qxd4 {[%emt 0:05:19]} 36. exd4 {[%emt 0:00:04]} Kf6 {[%emt 0:01:27]} 37. Kf2 {[%emt 0:00:18]} g6 $18 {[%emt 0:02:36]} 38. Kf3 {[%emt 0:00:32] Ke5 [%emt 00:00:25] Ke4+} 1/2-1/2

[Event "Canary Islands-chW 2019"]
[Site "La Palma"]
[Date "2019.05.05"]
[Round "6.1"]
[White "Sosa Suarez, Carla Cristina"]
[Black "Sanabria Taskila, Jenny Maria"]
[Result "1-0"]
[ECO "B57"]
[WhiteElo "2093"]
[BlackElo "1815"]
[Annotator "NA"]
[PlyCount "121"]
[EventDate "2019.05.02"]
[EventType "swiss"]
[EventCountry "ESP"]
[SourceTitle "playchess.com"]
[Source "ChessBase"]
[SourceQuality "1"]
[TimeControl "5400+30"]

1. e4 {[%emt 0:00:00]} c5 {[%emt 0:00:00]} 2. Nf3 {[%emt 0:00:00]} d6 {[%emt 0:00:00]} 3. d4 {[%emt 0:00:00]} cxd4 {[%emt 0:00:00]} 4. Nxd4 {[%emt 0:00:00]} Nf6 {[%emt 0:00:00]} 5. Nc3 {[%emt 0:00:00]} Nc6 {[%emt 0:00:04]} 6. Bc4 {[%emt 0:00:03]} Qb6 {[%emt 0:00:10]} 7. Nb3 {[%emt 0:00:14]} e6 {[%emt 0:01:03]} 8. Bf4 {[%emt 0:00:07]} Ne5 {[%emt 0:00:58]} 9. Be2 {[%emt 0:00:13]} a6 {[%emt 0:00:58]} 10. Be3 {[%emt 0:04:39]} Qc7 {[%emt 0:01:07]} 11. f4 {[%emt 0:01:09]} Nc4 {[%emt 0:22:47]} 12. Bxc4 {[%emt 0:00:04]} Qxc4 {[%emt 0:00:06]} 13. Qf3 {[%emt 0:00:07]} Bd7 {[%emt 0:06:43] B57: Classical Sicilian: Sozin with 6...Qb6} (13... Qc7 14. g4 h6 15. h4 h5 16. g5 Ng4 17. O-O-O b5 18. a3 Bb7 19. f5 Rc8 20. Bd4 e5 21. Bg1 {1-0 (51) Pichot,A (2492)-Henriquez Villagra,C (2489) Buenos Aires 2015}) 14. O-O-O {[%emt 0:01:37]} Rc8 {[%emt 0:17:34]} 15. Kb1 {[%emt 0:03:04]} b5 $146 {[%emt 0:06:48]} ({Predecessor:} 15... Qc7 16. g4 Bc6 17. Nd4 e5 18. Nxc6 bxc6 19. fxe5 dxe5 20. Rhf1 h6 21. h4 {1-0 (36) Dukaczewski,P (2290)-Riegler,D (2190) Zakopane 2000}) 16. Rd4 {[%emt 0:09:09]} Qc7 {[%emt 0:02:48]} 17. Qe2 {[%emt 0:04:49]} Be7 {[%emt 0:01:56]} 18. Bf2 {[%emt 0:02:58]} e5 {[%emt 0:08:51]} 19. Rd2 {[%emt 0:01:27]} Qc4 {[%emt 0:05:34]} 20. Re1 {[%emt 0:17:14]} O-O {[%emt 0:06:50]} 21. fxe5 {[%emt 0:02:39]} dxe5 {[%emt 0:00:34]} 22. Bg3 {[%emt 0:01:20]} Qxe2 {[%emt 0:03:31]} 23. Rexe2 {[%emt 0:00:56]} Bg4 {[%emt 0:00:48]} 24. Re1 {[%emt 0:03:58]} Nd7 {[%emt 0:01:02]} 25. Nd5 {[%emt 0:03:51]} Bg5 {[%emt 0:01:48]} 26. Rf2 {[%emt 0:02:05]} h5 {[%emt 0:01:12]} 27. h4 {[%emt 0:00:59]} Bd8 {[%emt 0:00:06]} 28. Ne3 {[%emt 0:02:32]} Be6 {[%emt 0:00:34]} 29. Nc1 {[%emt 0:01:22]} Bb6 {[%emt 0:01:42]} 30. Nd3 {[%emt 0:01:19]} f6 {[%emt 0:01:05]} 31. Rd2 {[%emt 0:03:06]} Ba5 {[%emt 0:03:08]} 32. c3 {[%emt 0:00:56]} Rb8 {[%emt 0:02:07]} 33. a3 {[%emt 0:02:03]} Rfc8 {[%emt 0:00:27]} 34. Nb4 {[%emt 0:01:21]} Nc5 {[%emt 0:01:55]} 35. Ned5 {[%emt 0:01:11]} Bd8 {[%emt 0:00:22]} 36. Bf2 $2 {[%emt 0:02:47]} (36. Nc2 $17) 36... Nb3 {[%emt 0:00:28]} 37. Rd3 {[%emt 0:03:09]} a5 {[%emt 0:00:38]} 38. Nc2 {[%emt 0:00:26]} Kf7 {[%emt 0:02:01]} 39. Na1 {[%emt 0:03:07]} Nxa1 {[%emt 0:00:50]} 40. Kxa1 {[%emt 0:00:05]} a4 {[%emt 0:00:37]} 41. Kb1 {[%emt 0:02:42]} Rc4 {[%emt 0:00:31]} 42. Kc1 {[%emt 0:01:45]} g5 {[%emt 0:00:34]} (42... Ba5 $17) 43. hxg5 {[%emt 0:01:11]} fxg5 {[%emt 0:00:27]} ({Better is} 43... f5 $11 44. exf5 Bxg5+ 45. Ne3 Bxf5) 44. Bg3 $1 {[%emt 0:00:32]} Rb7 {[%emt 0:00:39]} 45. Bxe5 {[%emt 0:00:58]} Rd7 {[%emt 0:00:29]} 46. Nb4 $11 {[%emt 0:01:57]} (46. Rf3+ $16 Kg6 47. Nb6) 46... Rxd3 {[%emt 0:00:26]} 47. Nxd3 {[%emt 0:00:05]} g4 {[%emt 0:00:35]} 48. Bd4 {[%emt 0:00:12]} Bg5+ {[%emt 0:00:23]} 49. Kc2 {[%emt 0:00:39]} Rc8 {[%emt 0:00:30]} 50. Rf1+ {[%emt 0:00:59]} Ke8 {[%emt 0:00:39]} 51. Nc5 {[%emt 0:00:50]} Bd7 {[%emt 0:00:31]} 52. Nxd7 {[%emt 0:00:42]} Kxd7 {[%emt 0:00:07]} 53. Rf5 {[%emt 0:00:22]} Rg8 {[%emt 0:00:12]} 54. Rxb5 {[%emt 0:00:18]} h4 {[%emt 0:00:04]} 55. Rb7+ {[%emt 0:00:46]} Ke6 {[%emt 0:00:55]} 56. Rh7 {[%emt 0:00:27]} Rg6 {[%emt 0:00:42]} 57. Bf2 {[%emt 0:02:04]} g3 {[%emt 0:00:11]} 58. Bd4 {[%emt 0:00:28]} Bh6 {[%emt 0:00:37]} 59. Ra7 {[%emt 0:00:29]} Bf4 {[%emt 0:01:14]} 60. Rxa4 {[%emt 0:00:53]} Rg4 {[%emt 0:00:31]} 61. Ra6+ {[%emt 0:00:16] Kd5 [%emt 00:00:12]} 1-0

[Event "Canary Islands-chW 2019"]
[Site "La Palma"]
[Date "2019.05.05"]
[Round "6.2"]
[White "Rodriguez Redondo, Adhara"]
[Black "Rodriguez Centenera, Sara"]
[Result "1-0"]
[ECO "B36"]
[WhiteElo "1883"]
[BlackElo "1709"]
[Annotator "NA RC"]
[PlyCount "63"]
[EventDate "2019.05.02"]
[EventType "swiss"]
[EventCountry "ESP"]
[SourceTitle "playchess.com"]
[Source "ChessBase"]
[SourceQuality "1"]
[TimeControl "5400+30"]

1. e4 {[%emt 0:00:00]} c5 {[%emt 0:02:49]} 2. Nf3 {[%emt 0:00:00]} Nc6 {[%emt 0:00:11]} 3. d4 {[%emt 0:00:00]} cxd4 {[%emt 0:00:05]} 4. Nxd4 {[%emt 0:00:00]} g6 {[%emt 0:00:11]} 5. c4 {[%emt 0:00:00]} Nf6 {[%emt 0:00:29]} 6. Nc3 {[%emt 0:00:07]} d6 {[%emt 0:00:06]} 7. Be2 {[%emt 0:00:39]} Nxd4 {[%emt 0:00:14]} 8. Qxd4 {[%emt 0:00:14]} Bg7 {[%emt 0:00:04]} 9. Be3 {[%emt 0:02:12]} O-O {[%emt 0:01:26]} 10. Qd2 {[%emt 0:00:52]} Bg4 {[%emt 0:04:17]} 11. f3 {[%emt 0:01:35]} Be6 {[%emt 0:00:14]} 12. O-O {[%emt 0:00:29]} a5 {[%emt 0:03:36]} 13. b3 {[%emt 0:02:15]} Nd7 {[%emt 0:14:39]} 14. Rac1 {[%emt 0:02:12]} Nc5 {[%emt 0:02:34]} 15. Rfd1 {[%emt 0:03:55]} Rc8 {[%emt 0:07:56]} 16. Nb5 {[%emt 0:03:50]} Rc6 {[%emt 0:10:30]} 17. Nd4 {[%emt 0:03:48]} Rc8 {[%emt 0:05:46]} 18. Nxe6 {[%emt 0:00:43]} fxe6 {[%emt 0:08:00]} 19. Qc2 {[%emt 0:03:50]} Qb6 {[%emt 0:03:12]} 20. Kh1 {[%emt 0:06:38]} Qb4 {[%emt 0:01:51]} 21. Bd2 {[%emt 0:04:28]} Qb6 {[%emt 0:06:59]} 22. Rb1 {[%emt 0:04:16]} Qa7 {[%emt 0:01:15]} 23. a3 {[%emt 0:03:16]} a4 {[%emt 0:06:28]} 24. b4 {[%emt 0:04:06]} Nb3 {[%emt 0:00:12]} 25. Bc3 {[%emt 0:05:00]} Rfd8 {[%emt 0:07:29]} 26. Bxg7 {[%emt 0:03:16]} Kxg7 {[%emt 0:00:04]} 27. Qb2+ {[%emt 0:02:40]} Kg8 {[%emt 0:00:06]} 28. Rd3 {[%emt 0:02:42]} Rxc4 {[%emt 0:02:42]} 29. Rxb3 {[%emt 0:01:05]} Rc6 {[%emt 0:04:53]} 30. Rc3 {[%emt 0:01:10]} Rdc8 {[%emt 0:00:23]} 31. Rxc6 {[%emt 0:00:12]} Rxc6 {[%emt 0:00:09]} 32. b5 {[%emt 0:00:10]} 1-0